Cogmind - Beta 13 @@@ ROGUE MODE // 2024.04.04 @ 15:07:40 Player: Xcalibur Result: Destroyed by B-48 Gladiator with Mace Performance ------------- Evolutions (3) 1500 Regions Visited (10) 2000 Robots Destroyed (76) 380 Value Destroyed (2159) 2159 Prototype IDs (17) 340 Alien Tech Used (0) 0 Bonus (423) 423 TOTAL SCORE: 6802 Bonus ------- Follower Combat Kills 131 Met Data Miner 300 Friendly Fire -8 Cogmind --------- Core Integrity 0/700 Matter 157/300 Energy 230/275 System Corruption 3% Temperature Cool (0) Movement Rolling (115) Ox1 Location -6/Proximity Caves Parts ------- > --- POWER (1) -------- Deuterium Engine > --- PROPULSION (3) --- Armored Huge Wheel > --- UTILITY (7) ------ Improved Heat Sink Large Storage Unit > --- WEAPON (2) ------- Advanced Beam Cannon > --- INVENTORY (15) --- Experimental Sensor Array Stasis Canceller Advanced Hardlight Generator Hacking Suite Makeshift System Restoration Module Coil Gun Coil Gun Heavy Flak Cannon Heavy Rocket Launcher Peak State ------------ > --- POWER ------------ Light Deuterium Engine > --- PROPULSION ------- Light Treads Armored Huge Wheel > --- UTILITY ---------- Improved Heat Sink Large Storage Unit Experimental Sensor Array Improved Targeting Computer Utility Shielding Layered Medium Armor Plating Hacking Suite > --- WEAPON ----------- Advanced Beam Cannon Advanced Assault Cannon > --- INVENTORY -------- Deuterium Engine Light Treads Armored Huge Wheel Layered Medium Armor Plating Advanced Hardlight Generator Hacking Suite Makeshift System Restoration Module Advanced Beam Cannon Gauss Rifle Coil Gun Coil Gun Heavy Flak Cannon Heavy Rocket Launcher Katana [Rating: 49] Favorites ----------- Power Light Deuterium Engine Engine Light Deuterium Engine Power Core Light Nuclear Core Propulsion Light Treads Treads Light Treads Leg Improved Aluminum Leg Wheel Armored Huge Wheel Utility Large Storage Unit Device Improved Heat Sink Storage Large Storage Unit Processor Improved Targeting Computer Hackware Hacking Suite Protection Utility Shielding Weapon Advanced Beam Cannon Energy Gun Medium Laser Energy Cannon Advanced Beam Cannon Ballistic Gun Heavy Assault Rifle Ballistic Cannon Advanced Assault Cannon Launcher Heavy Rocket Launcher Slashing Weapon Katana Build | -11 -10 -10 -10 -9 -8 -7 -7 -7 -7 -6 ------- Run | Yrd Mat Min Exi Min Mat Fac Low Low Dat Pro Slots Evolved 6 | . . . . . 4 2 . . . . Power . | . . . . . . . . . . . Propulsion 1 | . . . . . 1 . . . . . Utility 5 | . . . . . 3 2 . . . . Weapon . | . . . . . . . . . . . Parts Attached 89 | 8 3 10 . 5 28 16 8 3 . 8 Power 8 | 1 1 . . . 4 1 . . . 1 Engine 5 | 1 1 . . . 1 1 . . . 1 Core 3 | . . . . . 3 . . . . . Reactor . | . . . . . . . . . . . Propulsion 20 | 2 . 1 . 1 7 5 1 1 . 2 Treads 13 | 2 . . . . 4 4 1 1 . 1 Leg 3 | . . . . . 3 . . . . . Wheel 4 | . . 1 . 1 . 1 . . . 1 Hover . | . . . . . . . . . . . Flight . | . . . . . . . . . . . Utility 28 | 3 1 4 . 1 7 5 6 . . 1 Device 13 | 2 . 3 . . 3 1 4 . . . Storage 3 | 1 1 . . . 1 . . . . . Processor 2 | . . . . . 1 1 . . . . Hackware 2 | . . . . . . 2 . . . . Protection 8 | . . 1 . 1 2 1 2 . . 1 Artifact . | . . . . . . . . . . . Weapon 33 | 2 1 5 . 3 10 5 1 2 . 4 Energy Gun 6 | 1 . . . 2 3 . . . . . Energy Cannon 4 | . . . . . 1 2 . . . 1 Ballistic Gun 11 | 1 1 3 . 1 4 . . . . 1 Ballistic Cannon 5 | . . . . . . 2 1 1 . 1 Launcher 5 | . . 2 . . . 1 . 1 . 1 Special Weapon . | . . . . . . . . . . . Impact Weapon . | . . . . . . . . . . . Slashing Weapon 2 | . . . . . 2 . . . . . Piercing Weapon . | . . . . . . . . . . . Special Melee Weapon . | . . . . . . . . . . . Unidentified Prototypes 4 | . . 1 . . 3 . . . . . Parts Lost 28 | . 1 3 . . 11 5 . . . 8 Power 5 | . 1 . . . 2 1 . . . 1 Propulsion 8 | . . 1 . . 2 3 . . . 2 Utility 8 | . . 1 . . 4 . . . . 3 Weapon 7 | . . 1 . . 3 1 . . . 2 Highest Loss Streak 8 | . 1 2 . . 3 4 . . . 8 To Critical Strikes . | . . . . . . . . . . . Average Slot Usage (%) 94 | . 99 97 74 99 96 98 92 92 92 85 Engine 7 | . 13 14 14 14 2 . 7 7 7 7 Core 1 | . . . . . 6 6 . . . . Treads 15 | . 28 20 14 14 18 22 7 7 7 6 Wheel 5 | . . 7 14 14 3 . 7 7 7 6 Device 13 | . 14 9 . . 17 16 17 15 15 13 Storage 9 | . 14 14 14 14 9 7 7 7 7 7 Processor 5 | . . . . . 9 7 7 7 7 6 Hackware 5 | . . . . . . 13 8 7 7 6 Protection 9 | . . 2 14 14 7 7 10 15 15 13 Energy Gun 4 | . 14 14 1 13 4 . . . . . Energy Cannon 4 | . . . . . 5 7 7 7 7 6 Ballistic Gun 4 | . 14 13 1 13 7 . . . . . Ballistic Cannon 3 | . . . . . . 6 7 6 7 5 Naked Turns . | . . . . . . . . . . . Heaviest Build 46 | 12 30 33 33 33 38 39 46 46 46 46 Greatest Support 60 | 40 40 40 10 20 60 60 28 28 28 28 Greatest Overweight (x) 3 | 1 . 3 3 3 2 1 1 1 1 1 Average Overweight (x) . | . . 1 2 1 . . 1 1 1 1 Largest Inventory Capacity 15 | 8 15 15 15 15 15 15 15 15 15 15 Average Capacity 14 | 7 9 15 15 15 15 15 15 15 15 15 Most Carried 15 | 7 9 15 15 15 15 15 15 15 15 15 Average Carried 13 | 4 8 9 15 14 14 14 14 14 15 14 Final Capacity 15 | 8 15 15 15 15 15 15 15 15 15 15 Final Carried 15 | 7 9 15 15 15 15 15 15 15 15 9 Class Distribution -------------------- 66% | Mutant 28% | Scavenger-Mutant 5% | Hacker-Mutant Dominant Class ---------------- Mutant | -10/Materials Mutant | -10/Mines Mutant | -10/Exiles Mutant | -9/Mines Scavenger-Mutant | -8/Materials Scavenger-Mutant | -7/Factory Mutant | -7/Lower Caves Mutant | -7/Lower Caves Mutant | -7/Data Miner Mutant | -6/Proximity Caves Resources | -11 -10 -10 -10 -9 -8 -7 -7 -7 -7 -6 ----------- Run | Yrd Mat Min Exi Min Mat Fac Low Low Dat Pro Matter Collected 1705 | 295 108 181 . 86 400 335 194 106 . . Remotely . | . . . . . . . . . . . Salvage Created 2758 | 145 346 156 . 131 826 757 129 96 . 172 Parts 142 | 14 20 7 . 10 53 27 1 5 . 5 Haulers Intercepted 3 | . . . . . 3 . . . . . Recyclers Shooed 3 | 1 1 . . . . 1 . . . . Parts Field Recycled . | . . . . . . . . . . . Retrieved Matter . | . . . . . . . . . . . Parts Self-Destructed 11 | . . . . . . . 1 5 . 5 Prevented . | . . . . . . . . . . . Kills | -11 -10 -10 -10 -9 -8 -7 -7 -7 -7 -6 ------- Run | Yrd Mat Min Exi Min Mat Fac Low Low Dat Pro Combat Hostiles Destroyed 65 | . 10 11 . 3 15 17 . 3 . 6 Guns 34 | . 10 9 . 3 12 . . . . . Cannons 18 | . . . . . 3 11 . 1 . 3 AOE 12 | . . 2 . . . 5 . 2 . 3 Classes Destroyed 14 | 2 2 3 . 1 3 2 . . . 1 Worker 3 | . . . . . 3 . . . . . Builder 2 | . . 1 . . 1 . . . . . Tunneler 4 | 4 . . . . . . . . . . Hauler 3 | . . . . . 3 . . . . . Recycler 5 | 1 1 . . . 1 2 . . . . Watcher 1 | . . . . . . 1 . . . . Swarmer 20 | . 6 3 . . 7 2 . . . 2 Grunt 25 | . 4 . . 2 3 11 . 3 . 2 Brawler 1 | . . . . . . . . . . 1 Duelist 2 | . . . . 1 . . . . . 1 Sentry 8 | . . 1 . . 4 3 . . . . Hunter 1 | . . . . . 1 . . . . . Programmer 1 | . . . . . . 1 . . . . Assembled 7 | . . 7 . . . . . . . . Best Kill Streak 6 | 1 5 5 . 1 5 6 . 2 . 3 Combat Bots Only 6 | . 5 5 . 1 4 6 . 2 . 3 Max Kills in Single Turn 4 | 1 2 1 . 1 2 4 . 1 . 1 Gunslinging 1 | . 1 . . . . . . . . . Exploded 4 | . . 1 . . . 4 . 1 . 1 Melee . | . . . . . . . . . . . Uniques/NPCs Destroyed . | . . . . . . . . . . . Combat | -11 -10 -10 -10 -9 -8 -7 -7 -7 -7 -6 -------- Run | Yrd Mat Min Exi Min Mat Fac Low Low Dat Pro Hostile Shots Fired 421 | . 62 37 . 7 89 166 . 13 . 47 Missed 125 | . 17 8 . 2 19 68 . 4 . 7 Damage Taken 5118 | . 425 404 . 83 1261 1214 . 169 . 1562 Core 1084 | . 62 136 . 16 158 250 . 38 . 424 Absorbed by Shields . | . . . . . . . . . . . Redirected to Shielding 51 | . . . . . . 36 . . . 15 Core Remaining (%) 61 | 100 . . . 14 71 . . . . . Volleys Fired 242 | 20 29 26 . 8 63 56 12 12 . 16 Largest 2 | 2 2 2 . 2 2 2 1 2 . 2 Hottest 116 | 70 70 70 . 73 96 116 68 116 . 116 Shots Fired 435 | 40 58 46 . 16 117 103 12 17 . 26 Gun 254 | 40 58 43 . 16 93 . . . . 4 Cannon 172 | . . . . . 24 102 12 15 . 19 Launcher 9 | . . 3 . . . 1 . 2 . 3 Special . | . . . . . . . . . . . Kinetic 198 | 20 29 22 . 8 54 51 . 5 . 9 Thermal 228 | 20 29 21 . 8 63 51 12 10 . 14 Explosive 9 | . . 3 . . . 1 . 2 . 3 Electromagnetic . | . . . . . . . . . . . Robot Hit Streak 16 | 6 11 8 . 6 16 12 11 8 . 12 Robot Miss Streak 4 | 2 3 4 . 1 2 2 1 1 . 1 Penetration Max 1 | . . . . . 1 . . . . . Secondary Targets 5 | . 2 1 . 1 1 . . . . . Max Gunslinging Chain 1 | . 1 1 . 1 1 . . . . . Shots Hit Robots 296 | 25 38 30 . 12 80 72 9 11 . 19 Core Hits 134 | 8 14 20 . 8 33 27 3 6 . 15 Critical Kills 2 | . 1 . . . . 1 . . . . Critical Parts Destroyed 1 | . . . . . 1 . . . . . Critical Strikes 17 | 3 3 2 . 1 5 1 . 1 . 1 Burn 12 | 3 2 2 . 1 4 . . . . . Meltdown 1 | . . . . . . 1 . . . . Destroy 2 | . 1 . . . 1 . . . . . Blast 2 | . . . . . . . . 1 . 1 Melee Attacks 5 | . . . . . 5 . . . . . Impact . | . . . . . . . . . . . Slashing 5 | . . . . . 5 . . . . . Piercing . | . . . . . . . . . . . Sneak Attacks . | . . . . . . . . . . . Combat Hostiles . | . . . . . . . . . . . Follow-up Attacks . | . . . . . . . . . . . Damage Inflicted 6817 | 253 497 547 . 175 1362 2320 185 445 . 1033 Guns 2405 | 251 489 336 . 172 1102 . . . . 55 Cannons 2800 | . . . . . 254 1778 185 244 . 339 Explosions 1544 | . . 180 . . . 524 . 201 . 639 Melee . | . . . . . . . . . . . Ramming 68 | 2 8 31 . 3 6 18 . . . . Kinetic 2410 | 101 248 135 . 82 600 974 . 77 . 193 Thermal 3025 | 150 241 201 . 90 756 1034 185 167 . 201 Explosive 1314 | . . 180 . . . 294 . 201 . 639 Electromagnetic . | . . . . . . . . . . . Impact . | . . . . . . . . . . . Slashing . | . . . . . . . . . . . Piercing . | . . . . . . . . . . . Highest Corruption 11 | . . 3 3 3 11 2 2 . . 3 Average Corruption 2 | . . 3 3 3 2 1 1 . . 2 Corruption Purged 2 | . . . . . . . 2 . . . Corruption Blocked . | . . . . . . . . . . . Effects 43 | . . 8 2 7 8 11 7 . . . Message Errors 7 | . . 1 1 . . 2 3 . . . Matter Fused 10 | . . 2 . 2 2 3 1 . . . Heat Flow Errors 4 | . . 1 . . 1 1 1 . . . Energy Discharges 6 | . . 2 1 1 1 1 . . . . Parts Rejected 1 | . . . . 1 . . . . . . Data Loss (minor) 6 | . . . . 1 2 2 1 . . . Data Loss (major) 4 | . . 1 . 1 . 1 1 . . . Misfires 1 | . . . . . 1 . . . . . Alerts 2 | . . . . 1 1 . . . . . Weapon Failures 2 | . . 1 . . . 1 . . . . Overload Shots . | . . . . . . . . . . . Overflow Damage 170 | . . 7 . . . 137 17 9 . . Projectiles 67 | . . . . . . 41 17 9 . . Explosions 103 | . . 7 . . . 96 . . . . Melee . | . . . . . . . . . . . Knockbacks 13 | . . . . . . 9 . 3 . 1 Impact . | . . . . . . . . . . . Kinetic 12 | . . . . . . 8 . 3 . 1 Secondary 1 | . . . . . . 1 . . . . Self-Inflicted Damage 198 | . . 71 . . 3 60 . . . 64 Shots 5 | . . 2 . . . 1 . . . 2 Rammed 18 | 1 3 7 . 2 1 4 . . . . Targets Rammed 21 | 1 4 8 . 2 1 5 . . . . Kicked . | . . . . . . . . . . . Crushed 3 | . 1 1 . . . 1 . . . . Highest Temperature 209 | 110 180 209 . 126 13 48 122 81 . 51 Average Temperature 51 | 39 61 58 . 51 8 27 80 43 . 14 Received Heat Transfer 1337 | . 126 158 . 48 279 510 . 99 . 117 Siege Activations . | . . . . . . . . . . . Robots Corrupted . | . . . . . . . . . . . Combat Hostiles . | . . . . . . . . . . . Parts Fried . | . . . . . . . . . . . Impact Corruptions . | . . . . . . . . . . . Robots Melted 1 | . . . . . . 1 . . . . Combat Hostiles 1 | . . . . . . 1 . . . . Parts Melted 9 | . . 1 . 1 5 1 . . . 1 Heat Transferred 6995 | 666 851 740 . 333 1924 1519 333 296 . 333 Parts Sabotaged . | . . . . . . . . . . . Parts Stolen . | . . . . . . . . . . . Parts Stripped . | . . . . . . . . . . . Power Chain Reactions . | . . . . . . . . . . . Alert | -11 -10 -10 -10 -9 -8 -7 -7 -7 -7 -6 ------- Run | Yrd Mat Min Exi Min Mat Fac Low Low Dat Pro Peak Influence 314 | 25 287 144 . 107 280 314 . . . . Initial 120 | . 16 39 . . . 120 . . . . Average 108 | 12 95 80 . 79 140 135 . . . . Maximum Alert Level 1 | . 1 . . . 1 1 . . . . Low Security (%) 85 | 100 92 100 . 100 69 78 . . . . Level 1 14 | . 7 . . . 30 21 . . . . Level 2 . | . . . . . . . . . . . Level 3 . | . . . . . . . . . . . Level 4 . | . . . . . . . . . . . Level 5 . | . . . . . . . . . . . High Security . | . . . . . . . . . . . Max Security . | . . . . . . . . . . . Squads Dispatched 13 | . 1 . . . 1 10 . . . 1 Investigation 4 | . . . . . 1 3 . . . . Extermination 2 | . . . . . . 2 . . . . Reinforcement 4 | . 1 . . . . 3 . . . . Assault 1 | . . . . . . . . . . 1 Garrison 2 | . . . . . . 2 . . . . Intercept . | . . . . . . . . . . . Searches Triggered . | . . . . . . . . . . . Construction Impeded 1 | . . . . . . 1 . . . . Haulers Reinforced 1 | . . . . . . 1 . . . . Active Scanning Responses . | . . . . . . . . . . . Cargo Convoy Interrupts . | . . . . . . . . . . . Stealth | -11 -10 -10 -10 -9 -8 -7 -7 -7 -7 -6 --------- Run | Yrd Mat Min Exi Min Mat Fac Low Low Dat Pro Distress Signals 3 | . 1 . . . 1 1 . . . . Communications Jammed . | . . . . . . . . . . . Distress Signals . | . . . . . . . . . . . Times Spotted 94 | . 14 21 . 5 20 21 . 3 . 10 Peak Tracking Total 8 | . 4 6 . 3 8 5 . 3 . 8 Tactical Retreats 5 | . 1 2 . . 2 . . . . . Traps | -11 -10 -10 -10 -9 -8 -7 -7 -7 -7 -6 ------- Run | Yrd Mat Min Exi Min Mat Fac Low Low Dat Pro Traps Triggered 1 | . . . . . . 1 . . . . Indirectly . | . . . . . . . . . . . Trap Hack Attempts . | . . . . . . . . . . . Triggered . | . . . . . . . . . . . Disarmed . | . . . . . . . . . . . Reprogrammed . | . . . . . . . . . . . Reused . | . . . . . . . . . . . Traps Extracted . | . . . . . . . . . . . Installed . | . . . . . . . . . . . Triggered . | . . . . . . . . . . . Machines | -11 -10 -10 -10 -9 -8 -7 -7 -7 -7 -6 ---------- Run | Yrd Mat Min Exi Min Mat Fac Low Low Dat Pro Machines Disabled 2 | . 1 . . . . 1 . . . . Max in Single Turn 1 | . 1 . . . . 1 . . . . Machines Repaired . | . . . . . . . . . . . Machines Dismantled . | . . . . . . . . . . . Machines Sabotaged . | . . . . . . . . . . . Overloaded Fab Kills . | . . . . . . . . . . . Hacking | -11 -10 -10 -10 -9 -8 -7 -7 -7 -7 -6 --------- Run | Yrd Mat Min Exi Min Mat Fac Low Low Dat Pro Machines Accessed 28 | . 5 1 1 . 5 10 1 1 4 . Terminals 14 | . 4 1 . . 4 5 . . . . Fabricators 1 | . . . . . . 1 . . . . Repair Stations . | . . . . . . . . . . . Recycling Units 4 | . 1 . . . 1 2 . . . . Scanalyzers 1 | . . . . . . 1 . . . . Garrison Access 1 | . . . . . . 1 . . . . Total Hacks 118 | . 11 4 23 . 22 25 1 1 31 . Successful 88 | . 5 3 23 . 10 14 1 1 31 . Failed 30 | . 6 1 . . 12 11 . . . . Catastrophic 6 | . 2 . . . 2 2 . . . . Database Lockouts . | . . . . . . . . . . . Manual 38 | . 10 2 4 . 15 7 . . . . Terminals 48 | . 9 4 . . 20 15 . . . . Fabricators 1 | . . . . . . 1 . . . . Repair Stations . | . . . . . . . . . . . Recycling Units 10 | . 2 . . . 2 6 . . . . Scanalyzers 1 | . . . . . . 1 . . . . Garrison Access 2 | . . . . . . 2 . . . . Terminal Hacks 72 | . 1 2 23 . 7 6 1 1 31 . Record 34 | . . . 23 . . . . . 11 . Part Schematic 12 | . . . . . . . . . 12 . Robot Schematic 5 | . . . . . . . . . 5 . Robot Analysis 5 | . 1 1 . . 2 1 . . . . Prototype ID Bank 4 | . . . . . 1 . . . 3 . Open Door 2 | . . . . . . . 1 1 . . Branch Access Points 1 | . . . . . . 1 . . . . Emergency Access Points 1 | . . . . . 1 . . . . . Terminal Index 2 | . . . . . 1 1 . . . . Locate Traps 4 | . . . . . 1 3 . . . . Zone Layout 2 | . . 1 . . 1 . . . . . Fabricator Hacks 1 | . . . . . . 1 . . . . Build 1 | . . . . . . 1 . . . . Repair Station Hacks . | . . . . . . . . . . . Recycling Unit Hacks 5 | . . . . . 1 4 . . . . Report Inventory 1 | . . . . . . 1 . . . . Retrieve Matter 2 | . . . . . . 2 . . . . Retrieve Components 2 | . . . . . 1 1 . . . . Scanalyzer . | . . . . . . . . . . . Garrison Access Hacks . | . . . . . . . . . . . Unauthorized Hacks 10 | . 4 1 . . 2 3 . . . . Terminals 8 | . 2 1 . . 2 3 . . . . Assimilate 1 | . . . . . . 1 . . . . Botnet 7 | . 2 1 . . 2 2 . . . . Fabricators . | . . . . . . . . . . . Repair Stations . | . . . . . . . . . . . Recycling Units 2 | . 2 . . . . . . . . . Monitor 1 | . 1 . . . . . . . . . Mask 1 | . 1 . . . . . . . . . Scanalyzers . | . . . . . . . . . . . Garrison Access . | . . . . . . . . . . . Data Cores Recovered . | . . . . . . . . . . . Used . | . . . . . . . . . . . Hacking Detections 20 | . 5 1 . . 4 10 . . . . Full Trace Events 3 | . . . . . 1 2 . . . . Feedback Events . | . . . . . . . . . . . Feedback Blocked . | . . . . . . . . . . . Robot Schematics Acquired 5 | . . . . . . . . . 5 . Robots Built . | . . . . . . . . . . . Authchips . | . . . . . . . . . . . Time . | . . . . . . . . . . . Total Robot Build Rating . | . . . . . . . . . . . Part Schematics Acquired 12 | . . . . . . . . . 12 . Parts Built 2 | . . . . . . 2 . . . . Authchips . | . . . . . . . . . . . Time 58 | . . . . . . 58 . . . . Total Part Build Rating 14 | . . . . . . 14 . . . . Parts Repaired . | . . . . . . . . . . . Time . | . . . . . . . . . . . Parts Recycled . | . . . . . . . . . . . Recycled Matter . | . . . . . . . . . . . Retrieved Matter . | . . . . . . . . . . . Retrieved Components 12 | . . . . . 10 2 . . . . Parts Scanalyzed . | . . . . . . . . . . . Part Schematics Acquired . | . . . . . . . . . . . Parts Damaged . | . . . . . . . . . . . Bothacking | -11 -10 -10 -10 -9 -8 -7 -7 -7 -7 -6 ------------ Run | Yrd Mat Min Exi Min Mat Fac Low Low Dat Pro Used RIF Installer . | . . . . . . . . . . . Robots Hacked . | . . . . . . . . . . . Non-combat . | . . . . . . . . . . . Combat . | . . . . . . . . . . . Robot Hacks Applied . | . . . . . . . . . . . Relay Couplers Released . | . . . . . . . . . . . Fabnet Peak Effective % . | . . . . . . . . . . . Robots Rewired . | . . . . . . . . . . . Allies Hacked . | . . . . . . . . . . . Hacks Repelled . | . . . . . . . . . . . Allies | -11 -10 -10 -10 -9 -8 -7 -7 -7 -7 -6 -------- Run | Yrd Mat Min Exi Min Mat Fac Low Low Dat Pro Total Allies 6 | . . 3 . 1 . 1 . . . 1 Largest Group 3 | . . 3 1 1 . 1 . . . 1 Highest-Rated Group 96 | . . 40 16 31 . 26 . . . 96 Highest-Rated Ally 96 | . . 16 16 31 . 26 . . . 96 Total Orders . | . . . . . . . . . . . Ally Attacks 46 | . . 27 . 6 . . . . . 13 Total Damage 723 | . . 241 . 58 . . . . . 424 Kills 6 | . . 3 . 2 . . . . . 1 Allies Corrupted . | . . . . . . . . . . . Allies Melted . | . . . . . . . . . . . Intel | -11 -10 -10 -10 -9 -8 -7 -7 -7 -7 -6 ------- Run | Yrd Mat Min Exi Min Mat Fac Low Low Dat Pro Robot Analysis Total 5 | . 1 1 . . 2 1 . . . . Derelict Logs Recovered 6 | . . 1 . 2 . . 1 1 . 1 Drone Launches . | . . . . . . . . . . . Drone Recoveries . | . . . . . . . . . . . Exploration | -11 -10 -10 -10 -9 -8 -7 -7 -7 -7 -6 ------------- Run | Yrd Mat Min Exi Min Mat Fac Low Low Dat Pro Turns Passed 6184 | 207 506 495 279 487 772 1110 1351 637 109 231 Spaces Moved 3850 | 87 248 286 250 259 316 507 1134 511 95 157 Core 7 | 7 . . . . . . . . . . Treads 1247 | 80 248 127 . 88 221 483 . . . . Legs . | . . . . . . . . . . . Wheels 2596 | . . 159 250 171 95 24 1134 511 95 157 Hover . | . . . . . . . . . . . Flight . | . . . . . . . . . . . Fastest Speed 50 | 50 160 110 110 110 115 115 115 115 115 115 Average Speed 132 | 152 160 135 111 166 151 157 115 115 115 115 Slowest Speed 240 | 160 160 160 125 240 240 160 115 115 115 115 Overloaded Moves . | . . . . . . . . . . . Propulsion Burnouts . | . . . . . . . . . . . Robots Hopped . | . . . . . . . . . . . Cave-ins Triggered 2 | . . . . . 1 . . . . 1 Exploration Rate (%) 50 | 5 46 58 67 66 31 19 96 62 75 33 Regions Visited 10 Branch Regions 7 Pre-discovered Areas 3 | . . . 1 . . . . . 1 1 Known Exits Taken 2 | . . . . . 1 1 . . . . Unknown Exits Taken 8 | 1 1 1 1 1 . . 1 1 1 . Scrap Searched 6 | . . 1 . . . . 3 2 . . Spaces Dug 28 | . . . . . 12 3 . . . 13 Terrain Destroyed 172 | . . 32 . . 12 44 . 36 . 48 Melee 5 | . . . . . 5 . . . . . Projectile 19 | . . . . . 7 8 . 1 . 3 AOE 148 | . . 32 . . . 36 . 35 . 45 Terrain Rammed . | . . . . . . . . . . . Walls Destroyed . | . . . . . . . . . . . Machines Disabled . | . . . . . . . . . . . Actions | -11 -10 -10 -10 -9 -8 -7 -7 -7 -7 -6 --------- Run | Yrd Mat Min Exi Min Mat Fac Low Low Dat Pro Total 4509 | 122 298 343 253 298 491 714 1171 543 94 182 Wait 194 | . 6 5 . 16 42 106 5 14 . . Move 3840 | 86 247 285 249 258 315 506 1133 510 94 157 Hop . | . . . . . . . . . . . Pick Up 62 | 6 5 7 . 5 19 13 5 2 . . Fast Attach 22 | 8 . 1 . 1 8 2 2 . . . Attach 33 | . 1 4 . 2 11 9 . . . 6 Detach 10 | 1 . 2 2 . 1 3 . . . 1 Swap 34 | . 2 5 . 2 9 5 6 3 . 2 Drop 46 | . 4 . 2 4 17 9 8 2 . . Fire 242 | 20 29 26 . 8 63 56 12 12 . 16 Melee 5 | . . . . . 5 . . . . . Ram 2 | . . . . 1 1 . . . . . Kick . | . . . . . . . . . . . Crush 19 | 1 4 8 . 1 . 5 . . . . Escape Stasis . | . . . . . . . . . . . Rewire . | . . . . . . . . . . . Trap . | . . . . . . . . . . . Miscellaneous . | . . . . . . . . . . . Route ------- -11/Scrapyard -10/Materials -10/Mines (discovered 3 exits: [*Mat x2] / *Exi) -10/Exiles -9/Mines -8/Materials (discovered 3 exits: *Fac x3) -7/Factory (discovered 3 exits: [*Fac] / *Low x2) -7/Lower Caves -7/Lower Caves -7/Data Miner -6/Proximity Caves History --------- Turn | Location | Event 9 | -11/Scrapyard | Discovered new exit (range 16) 208 | -11/Scrapyard | Entered Materials 301 | -10/Materials | Build established: Mutant 420 | -10/Materials | Discovered new exit (range 7) 714 | -10/Materials | Entered Mines 720 | -10/Mines | Met a Derelict bent on vengeance 732 | -10/Mines | Discovered new exit (range 8) 732 | -10/Mines | Discovered new exit (range 15) 913 | -10/Mines | Assembled infested the area 918 | -10/Mines | Assisted by a Guerilla fighting off Assembled 966 | -10/Mines | Core integrity fell below 50% 994 | -10/Mines | Found a damaged Exp. Sensor Array with a note attached 997 | -10/Mines | Found Prototype Device 997 | -10/Mines | Identified Exp. Sensor Array 1012 | -10/Mines | Assisted by bots powering up and referring to "LRC-V3" 1113 | -10/Mines | Learned location of 2 exits from Materials 1203 | -10/Mines | Deemed a non-threat by the Exiles lab entrance 1204 | -10/Mines | Discovered new exit (range 5) 1209 | -10/Mines | Entered Exiles 1209 | -10/Exiles | Accompanied by 1 ally 1240 | -10/Exiles | Met 8R-AWN 1260 | -10/Exiles | Met EX-HEX 1313 | -10/Exiles | Met EX-DEC 1336 | -10/Exiles | Met EX-BIN 1434 | -10/Exiles | Learned location of Zion (-6) 1468 | -10/Exiles | Discovered new exit (range 12) 1488 | -10/Exiles | Entered Mines 1488 | -9/Mines | Accompanied by 1 ally 1525 | -9/Mines | Received a Mining Laser from a helpful Derelict 1528 | -9/Mines | Core integrity fell below 20% 1760 | -9/Mines | Learned location of 1 exit from Materials 1762 | -9/Mines | Learned Materials trap positions 1944 | -9/Mines | Discovered new exit (range 12) 1975 | -9/Mines | Entered Materials 1975 | -8/Materials | Evolved 4 slots: Propulsion x1, Utility x3 1976 | -8/Materials | Identified exit to Factory 1977 | -8/Materials | Loaded intel: 16 trap records 2253 | -8/Materials | Lost 3 parts (1p1n1w) 2388 | -8/Materials | Build established: Scavenger-Mutant 2719 | -8/Materials | Crushed by falling debris 2719 | -8/Materials | System corruption reached 10% 2747 | -8/Materials | Entered Factory 2747 | -7/Factory | Evolved 2 slots: Utility x2 2750 | -7/Factory | Lost 3 parts (2u1w) 3222 | -7/Factory | Identified exit to Lower Caves 3310 | -7/Factory | Fabricated Adv. Hardlight Generator (x2) 3395 | -7/Factory | Discovered new exit (range 16) 3668 | -7/Factory | Garrison activated, responded to threat 3809 | -7/Factory | Lost 4 parts (1p2n1w) 3857 | -7/Factory | Entered Lower Caves 4057 | -7/Lower Caves | Learned location of 1 exit from Factory 4120 | -7/Lower Caves | Build established: Hacker-Mutant 4473 | -7/Lower Caves | Build established: Mutant 4570 | -7/Lower Caves | Encountered a Warlord checkpoint 5056 | -7/Lower Caves | Discovered new exit (range 9) 5208 | -7/Lower Caves | Entered another Lower Caves area 5632 | -7/Lower Caves | Learned Factory stockpile data 5748 | -7/Lower Caves | Discovered new exit (range 12) 5774 | -7/Lower Caves | Encountered a Warlord checkpoint 5845 | -7/Lower Caves | Entered Data Miner 5845 | -7/Data Miner | Discovered new exit (range 6) 5867 | -7/Data Miner | Met Data Miner 5901 | -7/Data Miner | Learned location of Section 7 (-2) 5901 | -7/Data Miner | Acquired the access code to Warlord's prototype stash 5928 | -7/Data Miner | Received God Mode back door access code from Data Miner 5954 | -7/Data Miner | Entered Proximity Caves 6109 | -6/Proximity Caves | Attracted the attention of an 0b10 outpost 6131 | -6/Proximity Caves | Core integrity fell below 50% 6158 | -6/Proximity Caves | Escorted by Enhanced Grunt 6173 | -6/Proximity Caves | Crushed by falling debris 6173 | -6/Proximity Caves | Core integrity fell below 20% 6185 | -6/Proximity Caves | Destroyed by B-48 Gladiator with Mace Last Messages --------------- 06158_ Enhanced Grunt: "Protecting LRC-V3." 06158_ Carbon-fiber Leg fries itself beyond repair. 06158_ Penetrated by Slug. 06167_ Adv. Beam Cannon destroyed. 06171_ Lyr. Medium Armor Plating severed. 06172_ Slug penetrates L-41 Fighter. 06173_ The unstable cave ceiling collapses. 06173_ Crushed by falling debris. 06173_ Imp. Targeting Computer destroyed. 06173_ System corrupted by crushing effect (+1). 06175_ The unstable cave ceiling collapses. 06175_ L-41 Fighter crushed by falling debris. 06175_ Adv. Assault Cannon crushed. 06176_ Lgt. Treads destroyed. 06178_ Arm. Huge Wheel destroyed. 06180_ Slug penetrates Enhanced Grunt. 06182_ Slug penetrates B-48 Gladiator. 06182_ Imp. Melee Analysis Suite melted. 06182_ L-41 Fighter destroyed. 06183_ Gauss Rifle destroyed. Map ----- +----------------------------------------------------+ | ?????????????????????????????????????????????????? | | ?????????????????????????????????????????????????? | | ?????????????????????????????????????????????????? | | ?????????????????????????????????????????????????? | | ?????????????????????????????????????????????????? | | ?????????????????????????????????????????????????? | | ?????????????????????????????????????????????????? | | ?????????????????????????????????????????????????? | | ?????????????????????????????????????????????????? | | ?????????????????????????????????????????????????? | | ?????????????????????????????????????????????????? | | ?????????????????????????????????????????????????? | | ?????????????????????????????????????????????????? | | ?????????????????????????????????????????????????? | | ?????????????????????????????????????????????????? | | ?????????????????????????????????????????????????? | | ??# #????????????????????????????????????????????? | | ?# ????????????????????????????????????????????? | | ? ????????????????????????????????????????????? | | # ????????????????????????????????????????????? | | # ?????????????????????????????????????????????? | | # #?????????????????????????????????????????????? | | # #???????????#?????????????????????????????????? | | ###???????### ????????????????????????????????? | | ##?????# ??????###??????????????????????? | | ##????#?? ????##@#??????????????????????? | | #????#"?### ####lb#??????????????????????? | | #????#%## # #??????????????????????? | | #?????#" # #??????????????????????? | | #?????## # = ##??????????????????????? | | #?????## ! #??????????????????????? | | ###???# ##??????????????????????? | | ###?# % #???????????????????????? | | ###### # %% ###???????????????????????? | | #???## * #?????????????????????????? | | ## ####?## % #?????????????????????????? | | ?## ##?### #??????????????????????????? | | ??# #???##g #??????????????????????????? | | ### ###### #??????????????????????????? | | ## #??????????????????????????? | | ##??????????????????????????? | | ## [ ####???????????????????????????? | | ####%%### ##??????????????????????????????? | | # ##??# %#?######???????????????????????????????? | | ####???# #??????????????????????????????????????? | | ???????# ??????????????????????????????????????? | | ??????? # ?????????????????????????????????????? | | ?????? ????????????????????????????????????? | | ?????? ### ##???????????????????????????????????? | | ?????# ??? ????????????????????????????????????? | +----------------------------------------------------+ Best States ------------- Heat Dissipation 48 Energy Generation 14 Energy Capacity 275 Matter Stores 300 Matter Capacity 300 Sight Range 16 Robot Scan Range 20 Terrain Scan Range 16 Terrain Scan Density 10 Base Temperature (-) 100 Armor Coverage 225 Utility Shielding 33 Evasion (%) 40 Targeting Accuracy 6 Recoil Reduction 3 Offensive Hacking 20 Item Schematics ----------------- Combat Drone Bay | -7/Data Miner | Free Lgt. Regenerative Plating | -7/Data Miner | Free Cld. Cesium-ion Thruster | -7/Data Miner | Free Thermal Defense Suite | -7/Data Miner | Free Prc. Rocket Launcher | -7/Data Miner | Free Arm. Medium Treads | -7/Data Miner | Free Imp. Corruption Screen | -7/Data Miner | Free Enh. Gauss Cannon | -7/Data Miner | Free Imp. Dynamic Insulation System | -7/Data Miner | Free Adv. Power Amplifier | -7/Data Miner | Free Linear Gravjet | -7/Data Miner | Free Lgt. Antimatter Reactor | -7/Data Miner | Free Robot Schematics ------------------ L-41 Fighter | -7/Data Miner | Free G-50 Soldier | -7/Data Miner | Free R-10 Processor | -7/Data Miner | Free G-47 Trooper | -7/Data Miner | Free E-15 Imp | -7/Data Miner | Free Fabricated ------------ Adv. Hardlight Generator | x2 | -7/Factory | Preloaded Alien Tech Used ----------------- None Achievements -------------- None Challenges ------------ None Game ------ Seed RecyclingControlExtractor Manual? 0 Play Time 01:23:24 Cumulative 88.7 hours Start 2024.04.03 @ 22:31:54 End 2024.04.04 @ 15:07:40 Sessions 3 Manual Loads 0 Difficulty Rogue Special Mode None Game No. 33 Rogue 33 Adventurer 0 Explorer 0 Win Type - Total 3 Types 3/0/0/0/0/0/0/0/0 Lore% 47 Gallery% 47 Achievement% 44 Wizard Run 0 Options --------- Layout 0 ASCII 0 Keyboard 0 Movement Arrows Keybinds 0 Fullscreen 2 Font 18/Terminus Map View 76x50 Zoom Use 0% Tactical HUD 1 Map Filters NONE Filters NONE Steam 1 RUN: d9d1bab6-54c1-48a8-af1a-c195a70c2c39